[Event "January 9 Late 2024"]
[Site "https://www.chess.com"]
[Date "2024.01.09"]
[Round "7"]
[White "Avramidou, Anastasia"]
[Black "Brodsky, David"]
[Result "1/2-1/2"]
[Board "81"]
[TimeControl "180+1"]
[WhiteFideId "4239873"]
[BlackFideId "2073250"]
[WhiteElo "2520"]
[BlackElo "2819"]
[WhiteTeam "GRE"]
[BlackTeam "USA"]
[WhiteClock "0:00:08"]
[BlackClock "0:00:04"]

1. Nf3 {[%clk 0:03:00]}  a6 {[%clk 0:03:00]} 2. g3 {[%clk 0:02:59]}  b5 {[%clk 0:03:00]} 3. Bg2 {[%clk 0:03:00]}  Bb7 {[%clk 0:03:00]} 4. O-O {[%clk 0:03:01]}  g6 {[%clk 0:03:00]} 5. a4 {[%clk 0:03:01]}  Bg7 {[%clk 0:03:00]} 6. c3 {[%clk 0:02:55]}  Nf6 {[%clk 0:02:49]} 7. d3 {[%clk 0:02:53]}  O-O {[%clk 0:02:49]} 8. Na3 {[%clk 0:02:52]}  d6 {[%clk 0:02:46]} 9. Bg5 {[%clk 0:02:50]}  Qd7 {[%clk 0:02:40]} 10. axb5 {[%clk 0:02:22]}  axb5 {[%clk 0:02:38]} 11. Qb3 {[%clk 0:02:14]}  Bc6 {[%clk 0:02:29]} 12. Nc2 {[%clk 0:01:59]}  Na6 {[%clk 0:02:19]} 13. Ncd4 {[%clk 0:01:56]}  Nc5 {[%clk 0:02:10]} 14. Qc2 {[%clk 0:01:56]}  Bb7 {[%clk 0:02:00]} 15. Nb3 {[%clk 0:01:44]}  Nxb3 {[%clk 0:01:44]} 16. Qxb3 {[%clk 0:01:45]}  Bd5 {[%clk 0:01:44]} 17. Qb4 {[%clk 0:01:42]}  h6 {[%clk 0:01:40]} 18. Bxf6 {[%clk 0:01:27]}  Bxf6 {[%clk 0:01:41]} 19. Qf4 {[%clk 0:01:11]}  Bg7 {[%clk 0:01:30]} 20. h4 {[%clk 0:01:01]}  e5 {[%clk 0:01:29]} 21. Qd2 {[%clk 0:01:01]}  h5 {[%clk 0:01:22]} 22. c4 {[%clk 0:00:42]}  Rxa1 {[%clk 0:01:02]} 23. Rxa1 {[%clk 0:00:42]}  bxc4 {[%clk 0:01:02]} 24. dxc4 {[%clk 0:00:41]}  Bxc4 {[%clk 0:00:59]} 25. Ra7 {[%clk 0:00:38]}  Rb8 {[%clk 0:00:40]} 26. Ng5 {[%clk 0:00:38]}  d5 {[%clk 0:00:21]} 27. Qc2 {[%clk 0:00:28]}  Qd6 {[%clk 0:00:16]} 28. e4 {[%clk 0:00:17]}  Qb6 {[%clk 0:00:10]} 29. Ra3 {[%clk 0:00:09]}  Qxb2 {[%clk 0:00:09]} 30. Qxb2 {[%clk 0:00:10]}  Rxb2 {[%clk 0:00:10]} 31. exd5 {[%clk 0:00:10]}  Bf8 {[%clk 0:00:08]} 32. Rc3 {[%clk 0:00:11]}  Rb4 {[%clk 0:00:06]} 33. Ne4 {[%clk 0:00:08]}  Kg7 {[%clk 0:00:06]} 34. Nd2 {[%clk 0:00:08]}  Be2 {[%clk 0:00:03]} 35. Rxc7 {[%clk 0:00:08]}  Rd4 {[%clk 0:00:03]} 36. Ne4 {[%clk 0:00:07]}  Rxd5 {[%clk 0:00:03]} 37. Ng5 {[%clk 0:00:07]}  Rd1+ {[%clk 0:00:03]} 38. Kh2 {[%clk 0:00:08]}  Bg4 {[%clk 0:00:02]} 39. Rxf7+ {[%clk 0:00:07]}  Kg8 {[%clk 0:00:02]} 40. Rc7 {[%clk 0:00:07]}  Bd6 {[%clk 0:00:02]} 41. Rc6 {[%clk 0:00:06]}  Kg7 {[%clk 0:00:01]} 42. Ra6 {[%clk 0:00:07]}  Be7 {[%clk 0:00:01]} 43. Ne6+ {[%clk 0:00:06]}  Bxe6 {[%clk 0:00:01]} 44. Rxe6 {[%clk 0:00:07]}  Bf6 {[%clk 0:00:02]} 45. Ra6 {[%clk 0:00:07]}  Rd2 {[%clk 0:00:03]} 46. Ra7+ {[%clk 0:00:07]}  Kf8 {[%clk 0:00:03]} 47. Ra8+ {[%clk 0:00:07]}  Kg7 {[%clk 0:00:03]} 48. Ra7+ {[%clk 0:00:08]}  Kf8 {[%clk 0:00:04]} 49. Ra8+ {[%clk 0:00:08]}  Kg7 {[%clk 0:00:04]} 50. Ra7+ {[%clk 0:00:08]} 1/2-1/2

[Event "January 9 Late 2024"]
[Site "https://www.chess.com"]
[Date "2024.01.09"]
[Round "7"]
[White "Mazi, Leon"]
[Black "Dourerassou, Jonathan"]
[Result "1-0"]
[Board "82"]
[TimeControl "180+1"]
[WhiteFideId "14600315"]
[BlackFideId "628050"]
[WhiteElo "2520"]
[BlackElo "2802"]
[WhiteTeam "SLO"]
[BlackTeam "FRA"]
[WhiteClock "0:00:33"]
[BlackClock "0:01:26"]

1. e4 {[%clk 0:02:56]}  c5 {[%clk 0:02:59]} 2. Nf3 {[%clk 0:02:55]}  e6 {[%clk 0:02:59]} 3. d4 {[%clk 0:02:52]}  cxd4 {[%clk 0:03:00]} 4. Nxd4 {[%clk 0:02:52]}  Nf6 {[%clk 0:03:01]} 5. Nc3 {[%clk 0:02:51]}  Nc6 {[%clk 0:03:01]} 6. Nxc6 {[%clk 0:02:50]}  bxc6 {[%clk 0:03:02]} 7. e5 {[%clk 0:02:50]}  Nd5 {[%clk 0:03:03]} 8. Ne4 {[%clk 0:02:51]}  Qc7 {[%clk 0:03:02]} 9. f4 {[%clk 0:02:50]}  Bb7 {[%clk 0:03:02]} 10. c4 {[%clk 0:02:45]}  Nb4 {[%clk 0:03:00]} 11. a3 {[%clk 0:02:31]}  Na6 {[%clk 0:03:00]} 12. Nd6+ {[%clk 0:02:31]}  Bxd6 {[%clk 0:02:59]} 13. exd6 {[%clk 0:02:31]}  Qa5+ {[%clk 0:02:58]} 14. b4 {[%clk 0:02:28]}  Qf5 {[%clk 0:02:42]} 15. c5 {[%clk 0:02:17]}  Nb8 {[%clk 0:02:37]} 16. Bd3 {[%clk 0:02:11]}  Qf6 {[%clk 0:02:36]} 17. Ra2 {[%clk 0:02:01]}  a5 {[%clk 0:02:36]} 18. Rb2 {[%clk 0:01:27]}  axb4 {[%clk 0:02:26]} 19. axb4 {[%clk 0:01:25]}  Ra1 {[%clk 0:02:21]} 20. O-O {[%clk 0:01:24]}  Qd4+ {[%clk 0:02:19]} 21. Kh1 {[%clk 0:01:20]}  Rxc1 {[%clk 0:02:15]} 22. Qxc1 {[%clk 0:01:19]}  Qxd3 {[%clk 0:02:15]} 23. f5 {[%clk 0:01:10]}  f6 {[%clk 0:02:02]} 24. fxe6 {[%clk 0:00:52]}  dxe6 {[%clk 0:02:03]} 25. Rd1 {[%clk 0:00:52]}  Qf5 {[%clk 0:01:56]} 26. b5 {[%clk 0:00:51]}  cxb5 {[%clk 0:01:51]} 27. d7+ {[%clk 0:00:47]}  Nxd7 {[%clk 0:01:50]} 28. c6 {[%clk 0:00:46]}  Bc8 {[%clk 0:01:36]} 29. cxd7+ {[%clk 0:00:45]}  Bxd7 {[%clk 0:01:37]} 30. Qc7 {[%clk 0:00:38]}  e5 {[%clk 0:01:36]} 31. Rbd2 {[%clk 0:00:38]}  O-O {[%clk 0:01:35]} 32. Rxd7 {[%clk 0:00:37]}  Qg4 {[%clk 0:01:34]} 33. h3 {[%clk 0:00:36]}  Qg3 {[%clk 0:01:26]} 34. Rd8 {[%clk 0:00:33]} 1-0

[Event "January 9 Late 2024"]
[Site "https://www.chess.com"]
[Date "2024.01.10"]
[Round "7"]
[White "Stopa, Jacek"]
[Black "Espinoza Palomino, Willyam"]
[Result "1-0"]
[Board "83"]
[TimeControl "180+1"]
[WhiteFideId "1119591"]
[BlackFideId "3804852"]
[WhiteElo "2775"]
[BlackElo "2520"]
[WhiteTeam "POL"]
[BlackTeam "PER"]
[WhiteClock "0:02:13"]
[BlackClock "0:01:27"]

1. d4 {[%clk 0:03:00]}  Nf6 {[%clk 0:02:59]} 2. c4 {[%clk 0:03:00]}  e6 {[%clk 0:02:59]} 3. Nf3 {[%clk 0:03:00]}  b6 {[%clk 0:02:59]} 4. g3 {[%clk 0:03:00]}  Bb7 {[%clk 0:02:59]} 5. Bg2 {[%clk 0:03:00]}  Be7 {[%clk 0:02:57]} 6. O-O {[%clk 0:03:00]}  O-O {[%clk 0:02:58]} 7. Nc3 {[%clk 0:02:59]}  Ne4 {[%clk 0:02:55]} 8. Bd2 {[%clk 0:02:55]}  f5 {[%clk 0:02:52]} 9. Rc1 {[%clk 0:02:52]}  d6 {[%clk 0:02:51]} 10. d5 {[%clk 0:02:52]}  Nxc3 {[%clk 0:02:47]} 11. Bxc3 {[%clk 0:02:52]}  e5 {[%clk 0:02:47]} 12. b4 {[%clk 0:02:52]}  a5 {[%clk 0:02:46]} 13. bxa5 {[%clk 0:02:47]}  bxa5 {[%clk 0:02:46]} 14. c5 {[%clk 0:02:44]}  Na6 {[%clk 0:02:39]} 15. c6 {[%clk 0:02:27]}  Bc8 {[%clk 0:02:38]} 16. Bxa5 {[%clk 0:02:23]}  Nc5 {[%clk 0:02:37]} 17. Bb4 {[%clk 0:02:24]}  e4 {[%clk 0:02:18]} 18. Nd4 {[%clk 0:02:16]}  Rxa2 {[%clk 0:02:17]} 19. Bxc5 {[%clk 0:02:13]}  dxc5 {[%clk 0:02:16]} 20. Qb3 {[%clk 0:02:13]}  cxd4 {[%clk 0:01:27]} 21. d6+ {[%clk 0:02:13]} 1-0

[Event "January 9 Late 2024"]
[Site "https://www.chess.com"]
[Date "2024.01.09"]
[Round "7"]
[White "Kosteniuk, Alexandra"]
[Black "Santos Flores, Alberto"]
[Result "1-0"]
[Board "88"]
[TimeControl "180+1"]
[WhiteFideId "4128125"]
[BlackFideId "3601234"]
[WhiteElo "2719"]
[BlackElo "2509"]
[WhiteTeam "SUI"]
[BlackTeam "ECU"]
[WhiteClock "0:00:58"]
[BlackClock "0:00:06"]

1. e4 {[%clk 0:03:00]}  e6 {[%clk 0:02:59]} 2. d4 {[%clk 0:03:00]}  d5 {[%clk 0:03:00]} 3. exd5 {[%clk 0:03:01]}  exd5 {[%clk 0:03:00]} 4. Nf3 {[%clk 0:03:01]}  Nf6 {[%clk 0:02:57]} 5. Bd3 {[%clk 0:02:57]}  Bd6 {[%clk 0:02:55]} 6. O-O {[%clk 0:02:56]}  O-O {[%clk 0:02:55]} 7. Bg5 {[%clk 0:02:56]}  Bg4 {[%clk 0:02:54]} 8. Nbd2 {[%clk 0:02:54]}  Nbd7 {[%clk 0:02:54]} 9. c4 {[%clk 0:02:54]}  c6 {[%clk 0:02:53]} 10. c5 {[%clk 0:02:53]}  Be7 {[%clk 0:02:45]} 11. b4 {[%clk 0:02:53]}  a6 {[%clk 0:02:45]} 12. a4 {[%clk 0:02:52]}  Re8 {[%clk 0:02:45]} 13. Qc2 {[%clk 0:02:47]}  h6 {[%clk 0:02:44]} 14. Bh4 {[%clk 0:02:44]}  Nf8 {[%clk 0:02:39]} 15. Ne5 {[%clk 0:02:40]}  Bh5 {[%clk 0:02:26]} 16. Bg3 {[%clk 0:02:24]}  N6d7 {[%clk 0:02:17]} 17. f4 {[%clk 0:02:12]}  f6 {[%clk 0:02:14]} 18. Nef3 {[%clk 0:02:06]}  Ne6 {[%clk 0:01:45]} 19. b5 {[%clk 0:02:02]}  axb5 {[%clk 0:01:44]} 20. axb5 {[%clk 0:02:03]}  cxb5 {[%clk 0:00:58]} 21. Bxb5 {[%clk 0:01:58]}  Rxa1 {[%clk 0:00:54]} 22. Rxa1 {[%clk 0:01:57]}  Bf7 {[%clk 0:00:49]} 23. Nb3 {[%clk 0:01:34]}  Nc7 {[%clk 0:00:47]} 24. Bd3 {[%clk 0:01:32]}  Nb8 {[%clk 0:00:47]} 25. Nh4 {[%clk 0:01:27]}  Nc6 {[%clk 0:00:46]} 26. Bh7+ {[%clk 0:01:27]}  Kh8 {[%clk 0:00:43]} 27. Bg6 {[%clk 0:01:24]}  Bxg6 {[%clk 0:00:38]} 28. Qxg6 {[%clk 0:01:21]}  Bf8 {[%clk 0:00:36]} 29. Qf7 {[%clk 0:01:05]}  Ne6 {[%clk 0:00:18]} 30. Re1 {[%clk 0:00:59]}  Qc7 {[%clk 0:00:06]} 31. Qxe8 {[%clk 0:00:58]} 1-0

[Event "January 9 Late 2024"]
[Site "https://www.chess.com"]
[Date "2024.01.09"]
[Round "7"]
[White "Arabidze, Meri"]
[Black "Mullodzhanov, Nathaniel"]
[Result "0-1"]
[Board "89"]
[TimeControl "180+1"]
[WhiteFideId "13604040"]
[BlackFideId "30961580"]
[WhiteElo "2713"]
[BlackElo "2502"]
[WhiteTeam "GEO"]
[BlackTeam "USA"]
[WhiteClock "0:00:00"]
[BlackClock "0:00:07"]

1. Nf3 {[%clk 0:03:00]}  d5 {[%clk 0:02:59]} 2. c4 {[%clk 0:03:00]}  Nf6 {[%clk 0:02:58]} 3. cxd5 {[%clk 0:03:00]}  Nxd5 {[%clk 0:02:57]} 4. e4 {[%clk 0:03:01]}  Nb6 {[%clk 0:02:57]} 5. d4 {[%clk 0:03:00]}  Bg4 {[%clk 0:02:57]} 6. Nc3 {[%clk 0:02:55]}  Bxf3 {[%clk 0:02:57]} 7. gxf3 {[%clk 0:02:55]}  e6 {[%clk 0:02:55]} 8. Be3 {[%clk 0:02:53]}  Bb4 {[%clk 0:02:55]} 9. Qc2 {[%clk 0:02:50]}  O-O {[%clk 0:02:55]} 10. Kd1 {[%clk 0:02:48]}  Nc6 {[%clk 0:02:54]} 11. Ke1 {[%clk 0:02:49]}  Nxd4 {[%clk 0:02:54]} 12. Qd1 {[%clk 0:02:33]}  e5 {[%clk 0:02:20]} 13. a3 {[%clk 0:02:27]}  Bxc3+ {[%clk 0:02:19]} 14. bxc3 {[%clk 0:02:26]}  Ne6 {[%clk 0:02:19]} 15. Qc2 {[%clk 0:02:20]}  Qe7 {[%clk 0:02:18]} 16. a4 {[%clk 0:02:18]}  Rfd8 {[%clk 0:02:14]} 17. a5 {[%clk 0:02:16]}  Nd7 {[%clk 0:02:15]} 18. Bc4 {[%clk 0:02:13]}  Ndc5 {[%clk 0:02:12]} 19. Ke2 {[%clk 0:02:05]}  c6 {[%clk 0:02:09]} 20. h4 {[%clk 0:02:02]}  Nf4+ {[%clk 0:02:06]} 21. Bxf4 {[%clk 0:02:01]}  exf4 {[%clk 0:02:07]} 22. h5 {[%clk 0:01:58]}  h6 {[%clk 0:02:06]} 23. Rag1 {[%clk 0:01:51]}  Ne6 {[%clk 0:01:47]} 24. Rg4 {[%clk 0:01:46]}  Qf6 {[%clk 0:01:39]} 25. Qc1 {[%clk 0:01:39]}  Kh7 {[%clk 0:01:20]} 26. Rhg1 {[%clk 0:01:34]}  Ng5 {[%clk 0:01:10]} 27. Rxf4 {[%clk 0:01:33]}  Qd6 {[%clk 0:01:01]} 28. Rf5 {[%clk 0:01:22]}  b5 {[%clk 0:00:51]} 29. axb6 {[%clk 0:01:15]}  axb6 {[%clk 0:00:52]} 30. f4 {[%clk 0:00:27]}  Ra2+ {[%clk 0:00:36]} 31. Kf1 {[%clk 0:00:18]}  Rd2 {[%clk 0:00:27]} 32. Kg2 {[%clk 0:00:11]}  Nxe4 {[%clk 0:00:25]} 33. Rxf7 {[%clk 0:00:10]}  Rxf2+ {[%clk 0:00:24]} 34. Kh1 {[%clk 0:00:11]}  Rg8 {[%clk 0:00:07]} 35. Qb1 {[%clk 0:00:11]}  Rxf4 {[%clk 0:00:04]} 36. Rxf4 {[%clk 0:00:08]}  Qxf4 {[%clk 0:00:05]} 37. Bxg8+ {[%clk 0:00:07]}  Kxg8 {[%clk 0:00:05]} 38. Qa2+ {[%clk 0:00:07]}  Kh7 {[%clk 0:00:05]} 39. Qg2 {[%clk 0:00:04]}  Nf2+ {[%clk 0:00:05]} 40. Qxf2 {[%clk 0:00:04]}  Qxf2 {[%clk 0:00:06]} 41. c4 {[%clk 0:00:03]}  Qf3+ {[%clk 0:00:06]} 42. Kh2 {[%clk 0:00:02]}  Qxh5+ {[%clk 0:00:06]} 43. Kg2 {[%clk 0:00:02]}  Qg4+ {[%clk 0:00:06]} 44. Kf2 {[%clk 0:00:00]}  Qxc4 {[%clk 0:00:07]} 0-1

[Event "January 9 Late 2024"]
[Site "https://www.chess.com"]
[Date "2024.01.09"]
[Round "7"]
[White "Niekras, Dawid"]
[Black "Pourkashiyan, Atousa"]
[Result "1-0"]
[Board "90"]
[TimeControl "180+1"]
[WhiteFideId "1160451"]
[BlackFideId "12502014"]
[WhiteElo "2687"]
[BlackElo "2497"]
[WhiteTeam "POL"]
[BlackTeam "USA"]
[WhiteClock "0:00:08"]
[BlackClock "0:00:08"]

1. e4 {[%clk 0:03:00]}  e5 {[%clk 0:02:59]} 2. Nc3 {[%clk 0:03:00]}  Nf6 {[%clk 0:02:58]} 3. g3 {[%clk 0:03:00]}  d5 {[%clk 0:02:53]} 4. exd5 {[%clk 0:03:01]}  Nxd5 {[%clk 0:02:53]} 5. Bg2 {[%clk 0:03:02]}  Nxc3 {[%clk 0:02:53]} 6. bxc3 {[%clk 0:03:03]}  Bd6 {[%clk 0:02:53]} 7. Nf3 {[%clk 0:03:03]}  O-O {[%clk 0:02:53]} 8. d3 {[%clk 0:03:03]}  Nc6 {[%clk 0:02:48]} 9. O-O {[%clk 0:03:03]}  Bg4 {[%clk 0:02:47]} 10. h3 {[%clk 0:03:04]}  Bh5 {[%clk 0:02:47]} 11. g4 {[%clk 0:03:04]}  Bg6 {[%clk 0:02:47]} 12. Ng5 {[%clk 0:02:47]}  Be7 {[%clk 0:02:26]} 13. Ne4 {[%clk 0:02:24]}  f5 {[%clk 0:02:19]} 14. Ng3 {[%clk 0:02:24]}  fxg4 {[%clk 0:02:06]} 15. Qxg4 {[%clk 0:02:19]}  Qc8 {[%clk 0:01:54]} 16. Rb1 {[%clk 0:02:09]}  Rb8 {[%clk 0:01:37]} 17. Qxc8 {[%clk 0:01:45]}  Rfxc8 {[%clk 0:01:36]} 18. Be3 {[%clk 0:01:46]}  a6 {[%clk 0:01:27]} 19. Be4 {[%clk 0:01:37]}  Bxe4 {[%clk 0:01:17]} 20. Nxe4 {[%clk 0:01:38]}  Rf8 {[%clk 0:01:13]} 21. Kg2 {[%clk 0:01:19]}  Bd6 {[%clk 0:01:13]} 22. a4 {[%clk 0:01:13]}  Ne7 {[%clk 0:01:13]} 23. Ba7 {[%clk 0:01:05]}  Ra8 {[%clk 0:01:12]} 24. Rxb7 {[%clk 0:01:04]}  Nd5 {[%clk 0:01:07]} 25. Be3 {[%clk 0:01:04]}  Rfb8 {[%clk 0:00:53]} 26. Rfb1 {[%clk 0:01:03]}  Rxb7 {[%clk 0:00:40]} 27. Rxb7 {[%clk 0:01:04]}  a5 {[%clk 0:00:36]} 28. c4 {[%clk 0:00:40]}  Nb4 {[%clk 0:00:34]} 29. c5 {[%clk 0:00:40]}  Bf8 {[%clk 0:00:33]} 30. Rxc7 {[%clk 0:00:40]}  Nxc2 {[%clk 0:00:33]} 31. Kf3 {[%clk 0:00:30]}  Rd8 {[%clk 0:00:33]} 32. Ke2 {[%clk 0:00:24]}  Nb4 {[%clk 0:00:33]} 33. Ra7 {[%clk 0:00:17]}  Nc6 {[%clk 0:00:32]} 34. Ra6 {[%clk 0:00:16]}  Nb4 {[%clk 0:00:32]} 35. Rxa5 {[%clk 0:00:16]}  Nxd3 {[%clk 0:00:33]} 36. Rb5 {[%clk 0:00:16]}  Nf4+ {[%clk 0:00:15]} 37. Bxf4 {[%clk 0:00:16]}  exf4 {[%clk 0:00:16]} 38. Rb4 {[%clk 0:00:12]}  Re8 {[%clk 0:00:14]} 39. Kd3 {[%clk 0:00:10]}  Rd8+ {[%clk 0:00:13]} 40. Ke2 {[%clk 0:00:05]}  Re8 {[%clk 0:00:12]} 41. Kf3 {[%clk 0:00:05]}  g5 {[%clk 0:00:07]} 42. Nf6+ {[%clk 0:00:05]}  Kf7 {[%clk 0:00:07]} 43. Nxe8 {[%clk 0:00:06]}  Kxe8 {[%clk 0:00:08]} 44. Rc4 {[%clk 0:00:07]}  Kd7 {[%clk 0:00:08]} 45. Ke4 {[%clk 0:00:07]}  Kc7 {[%clk 0:00:09]} 46. c6 {[%clk 0:00:07]}  Bd6 {[%clk 0:00:09]} 47. Kf5 {[%clk 0:00:07]}  h6 {[%clk 0:00:09]} 48. f3 {[%clk 0:00:06]}  Bf8 {[%clk 0:00:09]} 49. a5 {[%clk 0:00:05]}  Bd6 {[%clk 0:00:09]} 50. a6 {[%clk 0:00:05]}  Kb6 {[%clk 0:00:09]} 51. a7 {[%clk 0:00:05]}  Kxa7 {[%clk 0:00:10]} 52. c7 {[%clk 0:00:06]}  Bxc7 {[%clk 0:00:10]} 53. Rxc7+ {[%clk 0:00:07]}  Kb6 {[%clk 0:00:08]} 54. Rh7 {[%clk 0:00:08]} 1-0

[Event "January 9 Late 2024"]
[Site "https://www.chess.com"]
[Date "2024.01.09"]
[Round "7"]
[White "Murtazin, Bulat"]
[Black "Martinez Ramirez, Lennis"]
[Result "0-1"]
[Board "91"]
[TimeControl "180+1"]
[WhiteFideId "24151351"]
[BlackFideId "3509079"]
[WhiteElo "2492"]
[BlackElo "2685"]
[WhiteTeam "RUS"]
[BlackTeam "CUB"]
[WhiteClock "0:00:00"]
[BlackClock "0:00:14"]

1. e4 {[%clk 0:03:00]}  c5 {[%clk 0:02:51]} 2. Nf3 {[%clk 0:02:59]}  Nc6 {[%clk 0:02:50]} 3. d4 {[%clk 0:02:58]}  cxd4 {[%clk 0:02:50]} 4. Nxd4 {[%clk 0:02:59]}  Qc7 {[%clk 0:02:50]} 5. Nc3 {[%clk 0:02:59]}  Nf6 {[%clk 0:02:48]} 6. Be2 {[%clk 0:02:56]}  e6 {[%clk 0:02:47]} 7. O-O {[%clk 0:02:55]}  a6 {[%clk 0:02:47]} 8. Be3 {[%clk 0:02:54]}  Bd6 {[%clk 0:02:46]} 9. g3 {[%clk 0:02:54]}  Be5 {[%clk 0:02:40]} 10. f4 {[%clk 0:02:44]}  Bxd4 {[%clk 0:02:35]} 11. Bxd4 {[%clk 0:02:45]}  d6 {[%clk 0:02:33]} 12. Be3 {[%clk 0:02:41]}  h5 {[%clk 0:02:31]} 13. a4 {[%clk 0:02:37]}  Ng4 {[%clk 0:02:30]} 14. Bxg4 {[%clk 0:02:30]}  hxg4 {[%clk 0:02:31]} 15. Qxg4 {[%clk 0:02:30]}  g6 {[%clk 0:02:32]} 16. Qg5 {[%clk 0:02:21]}  Qe7 {[%clk 0:02:30]} 17. Qxe7+ {[%clk 0:02:17]}  Kxe7 {[%clk 0:02:31]} 18. Bb6 {[%clk 0:02:17]}  Nb4 {[%clk 0:02:28]} 19. Rf2 {[%clk 0:02:16]}  Bd7 {[%clk 0:02:28]} 20. a5 {[%clk 0:02:13]}  Rac8 {[%clk 0:02:27]} 21. Rd1 {[%clk 0:02:11]}  e5 {[%clk 0:01:51]} 22. fxe5 {[%clk 0:01:37]}  dxe5 {[%clk 0:01:52]} 23. Nd5+ {[%clk 0:01:37]}  Nxd5 {[%clk 0:01:50]} 24. Rxd5 {[%clk 0:01:38]}  Rh5 {[%clk 0:01:37]} 25. Rfd2 {[%clk 0:00:54]}  Bc6 {[%clk 0:01:21]} 26. Rc5 {[%clk 0:00:54]}  Rch8 {[%clk 0:01:13]} 27. Bc7 {[%clk 0:00:51]}  f6 {[%clk 0:01:12]} 28. Rc4 {[%clk 0:00:37]}  Rg5 {[%clk 0:01:12]} 29. Bd6+ {[%clk 0:00:34]}  Ke6 {[%clk 0:01:11]} 30. Bc5 {[%clk 0:00:34]}  Rg4 {[%clk 0:01:10]} 31. Rd6+ {[%clk 0:00:27]}  Kf7 {[%clk 0:01:10]} 32. Rb4 {[%clk 0:00:25]}  Rc8 {[%clk 0:01:02]} 33. Be3 {[%clk 0:00:19]}  f5 {[%clk 0:00:55]} 34. c3 {[%clk 0:00:17]}  Bxe4 {[%clk 0:00:49]} 35. Kf2 {[%clk 0:00:13]}  Rh8 {[%clk 0:00:46]} 36. h4 {[%clk 0:00:09]}  Ke7 {[%clk 0:00:32]} 37. Bc5 {[%clk 0:00:07]}  Kf7 {[%clk 0:00:31]} 38. Rd7+ {[%clk 0:00:07]}  Ke6 {[%clk 0:00:30]} 39. Rd6+ {[%clk 0:00:06]}  Kf7 {[%clk 0:00:28]} 40. Rd7+ {[%clk 0:00:04]}  Kf6 {[%clk 0:00:26]} 41. Rb6+ {[%clk 0:00:03]}  Bc6 {[%clk 0:00:25]} 42. Rdxb7 {[%clk 0:00:03]}  Rc8 {[%clk 0:00:24]} 43. Rb8 {[%clk 0:00:02]}  Rxb8 {[%clk 0:00:19]} 44. Rxb8 {[%clk 0:00:03]}  Kf7 {[%clk 0:00:15]} 45. Rb6 {[%clk 0:00:03]}  Bd5 {[%clk 0:00:14]} 46. Rxa6 {[%clk 0:00:03]}  f4 {[%clk 0:00:15]} 47. gxf4 {[%clk 0:00:00]}  exf4 {[%clk 0:00:14]} 0-1

[Event "January 9 Late 2024"]
[Site "https://www.chess.com"]
[Date "2024.01.09"]
[Round "7"]
[White "Ladan, Nicholas"]
[Black "Rosen, Eric"]
[Result "1-0"]
[Board "93"]
[TimeControl "180+1"]
[WhiteFideId "30918855"]
[BlackFideId "2032562"]
[WhiteElo "2487"]
[BlackElo "2657"]
[WhiteTeam "USA"]
[BlackTeam "USA"]
[WhiteClock "0:00:18"]
[BlackClock "0:00:00"]

1. Nf3 {[%clk 0:03:00]}  d5 {[%clk 0:02:59]} 2. g3 {[%clk 0:03:01]}  Nf6 {[%clk 0:02:59]} 3. Bg2 {[%clk 0:03:01]}  e6 {[%clk 0:02:58]} 4. O-O {[%clk 0:03:02]}  Be7 {[%clk 0:02:58]} 5. d3 {[%clk 0:02:59]}  b6 {[%clk 0:02:56]} 6. Nbd2 {[%clk 0:02:58]}  Bb7 {[%clk 0:02:56]} 7. c3 {[%clk 0:02:57]}  O-O {[%clk 0:02:54]} 8. Re1 {[%clk 0:02:58]}  c5 {[%clk 0:02:50]} 9. Qc2 {[%clk 0:02:58]}  Nc6 {[%clk 0:02:50]} 10. e4 {[%clk 0:02:59]}  dxe4 {[%clk 0:02:50]} 11. dxe4 {[%clk 0:03:00]}  Rc8 {[%clk 0:02:41]} 12. e5 {[%clk 0:02:59]}  Nd7 {[%clk 0:02:39]} 13. Nc4 {[%clk 0:02:43]}  b5 {[%clk 0:02:22]} 14. Nd6 {[%clk 0:02:23]}  Bxd6 {[%clk 0:02:05]} 15. exd6 {[%clk 0:02:23]}  Nf6 {[%clk 0:01:59]} 16. Bf4 {[%clk 0:02:18]}  Nd5 {[%clk 0:01:56]} 17. Ng5 {[%clk 0:02:08]}  g6 {[%clk 0:01:52]} 18. Rad1 {[%clk 0:01:45]}  Nxf4 {[%clk 0:01:36]} 19. gxf4 {[%clk 0:01:46]}  Na5 {[%clk 0:01:37]} 20. Bxb7 {[%clk 0:01:36]}  Nxb7 {[%clk 0:01:36]} 21. Qe4 {[%clk 0:01:37]}  h6 {[%clk 0:00:34]} 22. Nxe6 {[%clk 0:01:25]}  Nxd6 {[%clk 0:00:34]} 23. Qe5 {[%clk 0:01:17]}  fxe6 {[%clk 0:00:26]} 24. Rxd6 {[%clk 0:01:11]}  Qf6 {[%clk 0:00:21]} 25. Qxe6+ {[%clk 0:01:06]}  Qxe6 {[%clk 0:00:11]} 26. Rexe6 {[%clk 0:01:07]}  Kh7 {[%clk 0:00:05]} 27. Rd7+ {[%clk 0:01:05]}  Kh8 {[%clk 0:00:02]} 28. Rxg6 {[%clk 0:01:05]}  Rxf4 {[%clk 0:00:02]} 29. Rxh6+ {[%clk 0:01:05]}  Kg8 {[%clk 0:00:03]} 30. Rg6+ {[%clk 0:00:53]}  Kh8 {[%clk 0:00:02]} 31. Rd5 {[%clk 0:00:49]}  Rh4 {[%clk 0:00:01]} 32. Rgg5 {[%clk 0:00:47]}  b4 {[%clk 0:00:01]} 33. Rxc5 {[%clk 0:00:44]}  Rxc5 {[%clk 0:00:01]} 34. Rxc5 {[%clk 0:00:43]}  bxc3 {[%clk 0:00:02]} 35. Rxc3 {[%clk 0:00:43]}  a5 {[%clk 0:00:02]} 36. Kg2 {[%clk 0:00:42]}  Kg7 {[%clk 0:00:02]} 37. Rc5 {[%clk 0:00:35]}  a4 {[%clk 0:00:02]} 38. Rb5 {[%clk 0:00:33]}  Kf7 {[%clk 0:00:01]} 39. a3 {[%clk 0:00:33]}  Rc4 {[%clk 0:00:01]} 40. Rb4 {[%clk 0:00:33]}  Rc2 {[%clk 0:00:02]} 41. h4 {[%clk 0:00:31]}  Kg6 {[%clk 0:00:02]} 42. Kg3 {[%clk 0:00:31]}  Rd2 {[%clk 0:00:02]} 43. f3 {[%clk 0:00:29]}  Rc2 {[%clk 0:00:02]} 44. Rxa4 {[%clk 0:00:25]}  Rxb2 {[%clk 0:00:02]} 45. Ra6+ {[%clk 0:00:25]}  Kf5 {[%clk 0:00:02]} 46. Ra5+ {[%clk 0:00:26]}  Kg6 {[%clk 0:00:02]} 47. h5+ {[%clk 0:00:26]}  Kh6 {[%clk 0:00:02]} 48. a4 {[%clk 0:00:26]}  Rb1 {[%clk 0:00:02]} 49. Kf4 {[%clk 0:00:26]}  Rb4+ {[%clk 0:00:02]} 50. Ke3 {[%clk 0:00:25]}  Rb3+ {[%clk 0:00:02]} 51. Ke2 {[%clk 0:00:26]}  Rb2+ {[%clk 0:00:02]} 52. Kf1 {[%clk 0:00:25]}  Ra2 {[%clk 0:00:02]} 53. Ke1 {[%clk 0:00:23]}  Kh7 {[%clk 0:00:02]} 54. Ra6 {[%clk 0:00:22]}  Kg7 {[%clk 0:00:02]} 55. h6+ {[%clk 0:00:22]}  Kh7 {[%clk 0:00:02]} 56. f4 {[%clk 0:00:22]}  Rh2 {[%clk 0:00:01]} 57. a5 {[%clk 0:00:21]}  Ra2 {[%clk 0:00:02]} 58. Kf1 {[%clk 0:00:21]}  Kh8 {[%clk 0:00:01]} 59. Ra7 {[%clk 0:00:20]}  Kg8 {[%clk 0:00:01]} 60. a6 {[%clk 0:00:19]}  Kh8 {[%clk 0:00:01]} 61. Ke1 {[%clk 0:00:18]}  Kg8 {[%clk 0:00:01]} 62. Kd1 {[%clk 0:00:18]}  Kh8 {[%clk 0:00:00]} 63. f5 {[%clk 0:00:18]} 1-0